[Event "Early-Titled-Tuesday-Blitz-May-07-2024"]
[Site "Chess.com"]
[Date "2024.05.07"]
[Round "4"]
[White "Bykov_Egor"]
[Black "DominguezOnYoutube"]
[Result "0-1"]
[WhiteElo "2617"]
[BlackElo "2966"]
[TimeControl "180+1"]
[EndTime "8:42:35 PDT"]
[Termination "DominguezOnYoutube won by resignation"]

1. Nf3 {[%clk 0:02:09.3]} 1... Nf6 {[%clk 0:02:59.3]} 2. b3 {[%clk 0:02:09.5]}
2... c5 {[%clk 0:02:57.2]} 3. Bb2 {[%clk 0:02:09.9]} 3... Nc6 {[%clk 0:02:57.1]}
4. e3 {[%clk 0:02:09]} 4... g6 {[%clk 0:02:56.2]} 5. d4 {[%clk 0:02:08.2]} 5...
cxd4 {[%clk 0:02:54.9]} 6. exd4 {[%clk 0:02:07.6]} 6... d5 {[%clk 0:02:53.8]} 7.
Bd3 {[%clk 0:02:07.3]} 7... Bg4 {[%clk 0:02:52.5]} 8. O-O {[%clk 0:02:02.6]}
8... Bg7 {[%clk 0:02:45.7]} 9. Nbd2 {[%clk 0:01:58.7]} 9... O-O {[%clk
0:02:44.3]} 10. h3 {[%clk 0:01:55.6]} 10... Bxf3 {[%clk 0:02:42.3]} 11. Nxf3
{[%clk 0:01:56.5]} 11... e6 {[%clk 0:02:42.3]} 12. Re1 {[%clk 0:01:51.2]} 12...
Rc8 {[%clk 0:02:41.8]} 13. a3 {[%clk 0:01:48.4]} 13... a6 {[%clk 0:02:40.3]} 14.
c4 {[%clk 0:01:41]} 14... dxc4 {[%clk 0:02:20.2]} 15. bxc4 {[%clk 0:01:41.9]}
15... Ne8 {[%clk 0:02:19.9]} 16. Bf1 {[%clk 0:01:30.6]} 16... Nd6 {[%clk
0:02:18.2]} 17. Ne5 {[%clk 0:00:59.7]} 17... Nxe5 {[%clk 0:02:16.1]} 18. dxe5
{[%clk 0:00:59.2]} 18... Nxc4 {[%clk 0:02:16.2]} 19. Bd4 {[%clk 0:00:59.3]}
19... Qd5 {[%clk 0:02:08.3]} 20. Qg4 {[%clk 0:00:45.7]} 20... Nxe5 {[%clk
0:01:59.9]} 21. Bxe5 {[%clk 0:00:43.8]} 21... Bxe5 {[%clk 0:02:00.5]} 22. Rad1
{[%clk 0:00:40.2]} 22... Qc5 {[%clk 0:01:57.3]} 23. Qe4 {[%clk 0:00:21.7]} 23...
Bc3 {[%clk 0:01:50.1]} 24. Re3 {[%clk 0:00:22.3]} 24... b5 {[%clk 0:01:40.9]}
25. a4 {[%clk 0:00:19.7]} 25... Rc6 {[%clk 0:01:25.5]} 26. Rd7 {[%clk
0:00:14.4]} 26... b4 {[%clk 0:01:19.6]} 27. Rb7 {[%clk 0:00:07.5]} 27... Rb6
{[%clk 0:01:13.8]} 28. Rxb6 {[%clk 0:00:05.4]} 28... Qxb6 {[%clk 0:01:14.2]} 29.
Bc4 {[%clk 0:00:06]} 29... Rd8 {[%clk 0:01:06.4]} 30. Bb3 {[%clk 0:00:03.5]}
30... a5 {[%clk 0:01:03.1]} 31. Rf3 {[%clk 0:00:03.6]} 31... Rd7 {[%clk
0:00:48.2]} 32. h4 {[%clk 0:00:03.3]} 32... Qd4 {[%clk 0:00:29.7]} 33. Qa8+
{[%clk 0:00:01.7]} 33... Kg7 {[%clk 0:00:29.8]} 34. h5 {[%clk 0:00:01.3]} 34...
Qh4 {[%clk 0:00:22.7]} 35. hxg6 {[%clk 0:00:00.3]} 35... hxg6 {[%clk 0:00:16.1]}
36. Qc8 {[%clk 0:00:00.7]} 36... Qd8 {[%clk 0:00:15.1]} 37. g3 {[%clk
0:00:01.6]} 37... Qxc8 {[%clk 0:00:15]} 0-1

[Event "Early-Titled-Tuesday-Blitz-May-07-2024"]
[Site "Chess.com"]
[Date "2024.05.07"]
[Round "4"]
[White "NFChess13"]
[Black "highlama"]
[Result "1-0"]
[WhiteElo "2653"]
[BlackElo "2396"]
[TimeControl "180+1"]
[EndTime "8:42:37 PDT"]
[Termination "NFChess13 won by checkmate"]

1. c4 {[%clk 0:02:59.9]} 1... g6 {[%clk 0:02:54.7]} 2. Nc3 {[%clk 0:02:59.5]}
2... Bg7 {[%clk 0:02:53.7]} 3. g3 {[%clk 0:02:59.9]} 3... e6 {[%clk 0:02:53.5]}
4. Bg2 {[%clk 0:02:59.4]} 4... Ne7 {[%clk 0:02:54.1]} 5. e4 {[%clk 0:02:59.6]}
5... O-O {[%clk 0:02:48.9]} 6. Nge2 {[%clk 0:02:59.5]} 6... b6 {[%clk
0:02:48.1]} 7. d4 {[%clk 0:02:57.7]} 7... Bb7 {[%clk 0:02:45.4]} 8. O-O {[%clk
0:02:55.6]} 8... d6 {[%clk 0:02:40.9]} 9. Be3 {[%clk 0:02:51.3]} 9... Nd7 {[%clk
0:02:37.8]} 10. Qd2 {[%clk 0:02:48.7]} 10... Re8 {[%clk 0:02:35.6]} 11. b4
{[%clk 0:02:45.8]} 11... c5 {[%clk 0:02:32.8]} 12. bxc5 {[%clk 0:02:40.5]} 12...
dxc5 {[%clk 0:02:32.5]} 13. d5 {[%clk 0:02:37]} 13... Ne5 {[%clk 0:02:24.4]} 14.
Bg5 {[%clk 0:02:33.9]} 14... Nxc4 {[%clk 0:02:22.2]} 15. Qc2 {[%clk 0:02:32.8]}
15... h6 {[%clk 0:02:18.3]} 16. Bxe7 {[%clk 0:02:26.6]} 16... Qxe7 {[%clk
0:02:18.9]} 17. Nf4 {[%clk 0:02:23.1]} 17... Ne5 {[%clk 0:01:52.7]} 18. a4
{[%clk 0:02:17.9]} 18... h5 {[%clk 0:01:22.2]} 19. Rfd1 {[%clk 0:02:16.1]} 19...
h4 {[%clk 0:01:14]} 20. Rab1 {[%clk 0:02:11.8]} 20... hxg3 {[%clk 0:01:12.6]}
21. hxg3 {[%clk 0:02:12.7]} 21... Qg5 {[%clk 0:01:07.5]} 22. Nb5 {[%clk
0:02:06.6]} 22... Red8 {[%clk 0:01:01.4]} 23. dxe6 {[%clk 0:02:04.6]} 23...
Rxd1+ {[%clk 0:00:58.4]} 24. Rxd1 {[%clk 0:02:04.3]} 24... fxe6 {[%clk
0:00:55.6]} 25. Nxe6 {[%clk 0:02:02.8]} 25... Qh5 {[%clk 0:00:51.5]} 26. Nxg7
{[%clk 0:01:59.8]} 26... Kxg7 {[%clk 0:00:52.4]} 27. Qc3 {[%clk 0:01:59.2]}
27... Kh6 {[%clk 0:00:49.9]} 28. f3 {[%clk 0:01:49.5]} 28... Rf8 {[%clk
0:00:45.2]} 29. Qe3+ {[%clk 0:00:58.6]} 29... Kg7 {[%clk 0:00:42.7]} 30. g4
{[%clk 0:00:57.4]} 30... Qh4 {[%clk 0:00:36.6]} 31. Qc3 {[%clk 0:00:55.8]} 31...
Qf6 {[%clk 0:00:29.5]} 32. Rd6 {[%clk 0:00:55.3]} 32... Qe7 {[%clk 0:00:13.3]}
33. Rd2 {[%clk 0:00:40.5]} 33... Ba6 {[%clk 0:00:13.2]} 34. Rf2 {[%clk
0:00:32.9]} 34... Bxb5 {[%clk 0:00:12.9]} 35. axb5 {[%clk 0:00:33.3]} 35... g5
{[%clk 0:00:13.5]} 36. Rd2 {[%clk 0:00:32.6]} 36... Rf6 {[%clk 0:00:12.2]} 37.
Rd5 {[%clk 0:00:32]} 37... Re6 {[%clk 0:00:12.3]} 38. Qa1 {[%clk 0:00:31.3]}
38... Kg6 {[%clk 0:00:12.4]} 39. Kf2 {[%clk 0:00:29.5]} 39... Qg7 {[%clk
0:00:10.6]} 40. Qc1 {[%clk 0:00:25]} 40... Qh8 {[%clk 0:00:10]} 41. Qh1 {[%clk
0:00:23.5]} 41... Qf8 {[%clk 0:00:08.3]} 42. Qh5+ {[%clk 0:00:21.9]} 42... Kf6
{[%clk 0:00:07]} 43. Qh7 {[%clk 0:00:20.5]} 43... Ng6 {[%clk 0:00:05.9]} 44.
Rf5# {[%clk 0:00:20]} 1-0

[Event "Early-Titled-Tuesday-Blitz-May-07-2024"]
[Site "Chess.com"]
[Date "2024.05.07"]
[Round "4"]
[White "edgarhay012"]
[Black "klimkoj"]
[Result "0-1"]
[WhiteElo "2669"]
[BlackElo "2920"]
[TimeControl "180+1"]
[EndTime "8:42:38 PDT"]
[Termination "klimkoj won by resignation"]

1. e4 {[%clk 0:03:00.9]} 1... c5 {[%clk 0:02:58.9]} 2. Nc3 {[%clk 0:03:00.8]}
2... d6 {[%clk 0:02:57.7]} 3. d4 {[%clk 0:03:00.1]} 3... cxd4 {[%clk 0:02:58.6]}
4. Qxd4 {[%clk 0:03:00.6]} 4... Nc6 {[%clk 0:02:58.7]} 5. Qd2 {[%clk 0:03:00.9]}
5... Nf6 {[%clk 0:02:57.8]} 6. b3 {[%clk 0:02:59.6]} 6... e6 {[%clk 0:02:58.4]}
7. Bb2 {[%clk 0:02:59.5]} 7... d5 {[%clk 0:02:59.1]} 8. exd5 {[%clk 0:02:59.7]}
8... exd5 {[%clk 0:03:00]} 9. O-O-O {[%clk 0:02:59.3]} 9... Be6 {[%clk
0:03:00.8]} 10. Nf3 {[%clk 0:02:58.5]} 10... Bb4 {[%clk 0:02:58.8]} 11. Qf4
{[%clk 0:02:44.5]} 11... Qa5 {[%clk 0:02:53.5]} 12. Nb5 {[%clk 0:02:39.9]} 12...
Qxa2 {[%clk 0:02:39.4]} 13. Bd3 {[%clk 0:02:22.1]} 13... O-O {[%clk 0:01:49.8]}
14. Ng5 {[%clk 0:02:13]} 14... d4 {[%clk 0:01:30.8]} 15. Qh4 {[%clk 0:00:34.5]}
15... h6 {[%clk 0:01:26.5]} 16. Nxe6 {[%clk 0:00:34.8]} 16... fxe6 {[%clk
0:01:27.4]} 17. Rhe1 {[%clk 0:00:35.3]} 17... a6 {[%clk 0:01:16.1]} 18. Nxd4
{[%clk 0:00:35.2]} 18... Ba3 {[%clk 0:01:16.7]} 19. Bxa3 {[%clk 0:00:31.3]}
19... Qxa3+ {[%clk 0:01:17.6]} 20. Kb1 {[%clk 0:00:31.7]} 20... Nd5 {[%clk
0:01:16]} 21. Ne2 {[%clk 0:00:24.2]} 21... a5 {[%clk 0:01:04]} 22. Qe4 {[%clk
0:00:20.5]} 22... Rf6 {[%clk 0:01:04.2]} 23. Qa4 {[%clk 0:00:14.2]} 23... Qc5
{[%clk 0:01:00.3]} 24. f3 {[%clk 0:00:12.2]} 24... Ncb4 {[%clk 0:00:57.8]} 25.
Be4 {[%clk 0:00:10.6]} 25... b5 {[%clk 0:00:53.9]} 26. Qa1 {[%clk 0:00:10.6]}
26... a4 {[%clk 0:00:51.5]} 27. Qd4 {[%clk 0:00:11.2]} 27... Qc7 {[%clk
0:00:48.3]} 28. c3 {[%clk 0:00:08.7]} 28... Nc6 {[%clk 0:00:47.6]} 29. Qd3
{[%clk 0:00:04.7]} 29... axb3 {[%clk 0:00:42.1]} 30. Bxd5 {[%clk 0:00:05.1]}
30... exd5 {[%clk 0:00:40.1]} 31. Qxd5+ {[%clk 0:00:06]} 31... Kh8 {[%clk
0:00:39.1]} 32. Qxb3 {[%clk 0:00:06.6]} 32... Na5 {[%clk 0:00:39.6]} 33. Qa2
{[%clk 0:00:04.6]} 33... Rfa6 {[%clk 0:00:39.7]} 34. Qd5 {[%clk 0:00:02.3]}
34... Nc4 {[%clk 0:00:39.6]} 35. Nc1 {[%clk 0:00:01.8]} 35... Qa5 {[%clk
0:00:29.9]} 36. Kc2 {[%clk 0:00:02.3]} 36... Qb6 {[%clk 0:00:28]} 37. Qf5 {[%clk
0:00:02.3]} 37... Qf2+ {[%clk 0:00:26.5]} 38. Re2 {[%clk 0:00:02.7]} 38... Ne3+
{[%clk 0:00:26.9]} 39. Kd3 {[%clk 0:00:02.7]} 39... Qxe2+ {[%clk 0:00:26.8]} 40.
Kxe2 {[%clk 0:00:03.3]} 40... Nxf5 {[%clk 0:00:27.7]} 41. Nb3 {[%clk 0:00:03.9]}
41... Ra3 {[%clk 0:00:26.9]} 42. Nc5 {[%clk 0:00:03.9]} 42... Rxc3 {[%clk
0:00:27.1]} 43. Ne4 {[%clk 0:00:04.5]} 43... Ra2+ {[%clk 0:00:27.1]} 44. Kf1
{[%clk 0:00:04.3]} 44... Ne3+ {[%clk 0:00:27.4]} 45. Ke1 {[%clk 0:00:04.2]}
45... Nxd1 {[%clk 0:00:28.3]} 0-1

[Event "Early-Titled-Tuesday-Blitz-May-07-2024"]
[Site "Chess.com"]
[Date "2024.05.07"]
[Round "4"]
[White "kleinebeer98"]
[Black "stolencandy13"]
[Result "1-0"]
[WhiteElo "2929"]
[BlackElo "2682"]
[TimeControl "180+1"]
[EndTime "8:42:39 PDT"]
[Termination "kleinebeer98 won by resignation"]

1. e4 {[%clk 0:03:00.9]} 1... c6 {[%clk 0:02:59.8]} 2. d4 {[%clk 0:03:00.8]}
2... d5 {[%clk 0:03:00.7]} 3. f3 {[%clk 0:03:01.6]} 3... Qb6 {[%clk 0:03:00.6]}
4. Nc3 {[%clk 0:03:01.7]} 4... dxe4 {[%clk 0:03:00.6]} 5. Bc4 {[%clk 0:03:02.5]}
5... e5 {[%clk 0:02:54.5]} 6. dxe5 {[%clk 0:03:02.5]} 6... Bc5 {[%clk
0:02:44.4]} 7. Nxe4 {[%clk 0:03:03]} 7... Qb4+ {[%clk 0:02:34.1]} 8. Nd2 {[%clk
0:02:42.5]} 8... Ne7 {[%clk 0:02:19]} 9. Ne2 {[%clk 0:02:29.7]} 9... O-O {[%clk
0:02:16.6]} 10. c3 {[%clk 0:02:30.1]} 10... Qb6 {[%clk 0:02:15.8]} 11. Ne4
{[%clk 0:02:30.3]} 11... Bf5 {[%clk 0:02:05.4]} 12. Nxc5 {[%clk 0:02:27.8]}
12... Qxc5 {[%clk 0:02:05]} 13. Qd4 {[%clk 0:02:28.6]} 13... Qa5 {[%clk
0:02:02]} 14. O-O {[%clk 0:02:22.2]} 14... Nd7 {[%clk 0:01:56.7]} 15. Ng3 {[%clk
0:02:03.9]} 15... Qxe5 {[%clk 0:01:41.3]} 16. Nxf5 {[%clk 0:02:03.6]} 16... Qxf5
{[%clk 0:01:37.9]} 17. Be3 {[%clk 0:01:50.6]} 17... Nb6 {[%clk 0:01:31.9]} 18.
Bd3 {[%clk 0:01:47.5]} 18... Qd5 {[%clk 0:01:25.6]} 19. Bxh7+ {[%clk 0:01:37.5]}
19... Kxh7 {[%clk 0:01:22]} 20. Qh4+ {[%clk 0:01:37.7]} 20... Kg8 {[%clk
0:01:20.4]} 21. Qxe7 {[%clk 0:01:38.6]} 21... Rfe8 {[%clk 0:01:18.4]} 22. Qc5
{[%clk 0:01:35.6]} 22... Qxc5 {[%clk 0:00:39.4]} 23. Bxc5 {[%clk 0:01:36.5]}
23... Nc4 {[%clk 0:00:40.2]} 24. b3 {[%clk 0:01:31.9]} 24... Ne3 {[%clk
0:00:35.7]} 25. Rf2 {[%clk 0:01:18.9]} 25... Nd5 {[%clk 0:00:32.4]} 26. c4
{[%clk 0:01:13.7]} 26... Nf4 {[%clk 0:00:29.6]} 27. Rd1 {[%clk 0:01:12.9]} 27...
b6 {[%clk 0:00:26.8]} 28. Ba3 {[%clk 0:01:01.8]} 28... Rad8 {[%clk 0:00:26.7]}
29. Rfd2 {[%clk 0:00:59.7]} 29... Rxd2 {[%clk 0:00:21]} 30. Rxd2 {[%clk
0:01:00.6]} 30... Re1+ {[%clk 0:00:21.2]} 31. Kf2 {[%clk 0:01:00.5]} 31... Ra1
{[%clk 0:00:21.6]} 32. Bd6 {[%clk 0:00:57.9]} 32... Ne6 {[%clk 0:00:20.2]} 33.
g4 {[%clk 0:00:38.6]} 33... f6 {[%clk 0:00:19.1]} 34. Bb8 {[%clk 0:00:31.4]}
34... a6 {[%clk 0:00:18.2]} 35. h4 {[%clk 0:00:21.9]} 35... b5 {[%clk
0:00:17.4]} 36. cxb5 {[%clk 0:00:17.6]} 36... axb5 {[%clk 0:00:15.2]} 37. Ba7
{[%clk 0:00:18.2]} 37... c5 {[%clk 0:00:14.4]} 38. Rc2 {[%clk 0:00:17]} 38... c4
{[%clk 0:00:13.7]} 39. bxc4 {[%clk 0:00:17.9]} 39... bxc4 {[%clk 0:00:14.5]} 40.
Be3 {[%clk 0:00:13.8]} 40... Kf7 {[%clk 0:00:13.8]} 41. h5 {[%clk 0:00:14.2]}
41... Nc7 {[%clk 0:00:12.6]} 42. Bd4 {[%clk 0:00:11.3]} 42... Nd5 {[%clk
0:00:12.4]} 43. Bxa1 {[%clk 0:00:11]} 1-0

[Event "Early-Titled-Tuesday-Blitz-May-07-2024"]
[Site "Chess.com"]
[Date "2024.05.07"]
[Round "4"]
[White "martinmena"]
[Black "PhileKhoob"]
[Result "0-1"]
[WhiteElo "2099"]
[BlackElo "2306"]
[TimeControl "180+1"]
[EndTime "8:42:40 PDT"]
[Termination "PhileKhoob won by checkmate"]

1. c4 {[%clk 0:03:00.9]} 1... Nf6 {[%clk 0:02:58.9]} 2. g3 {[%clk 0:02:57]} 2...
g6 {[%clk 0:02:55.3]} 3. Bg2 {[%clk 0:02:56.7]} 3... d5 {[%clk 0:02:55.6]} 4.
cxd5 {[%clk 0:02:55.7]} 4... Nxd5 {[%clk 0:02:56.2]} 5. Nc3 {[%clk 0:02:55.7]}
5... Nxc3 {[%clk 0:02:55.8]} 6. bxc3 {[%clk 0:02:54.7]} 6... Bg7 {[%clk
0:02:56]} 7. Nf3 {[%clk 0:02:53.3]} 7... O-O {[%clk 0:02:54.5]} 8. O-O {[%clk
0:02:53.9]} 8... c5 {[%clk 0:02:54.3]} 9. d4 {[%clk 0:02:52.4]} 9... Nc6 {[%clk
0:02:54.3]} 10. Rb1 {[%clk 0:02:44.5]} 10... cxd4 {[%clk 0:02:52.8]} 11. cxd4
{[%clk 0:02:44.2]} 11... Nxd4 {[%clk 0:02:53]} 12. Nxd4 {[%clk 0:02:43.5]} 12...
Qxd4 {[%clk 0:02:53.1]} 13. Qxd4 {[%clk 0:02:41]} 13... Bxd4 {[%clk 0:02:54]}
14. Bh6 {[%clk 0:02:35.2]} 14... Re8 {[%clk 0:02:43.6]} 15. Bxb7 {[%clk
0:02:33.9]} 15... Rb8 {[%clk 0:02:43.4]} 16. Bc6 {[%clk 0:02:28.2]} 16... Rxb1
{[%clk 0:02:31.1]} 17. Rxb1 {[%clk 0:02:28.4]} 17... Rd8 {[%clk 0:02:29.8]} 18.
Rb8 {[%clk 0:01:56.7]} 18... Bb6 {[%clk 0:02:27.6]} 19. Bf4 {[%clk 0:01:15.3]}
19... Bf5 {[%clk 0:02:00.4]} 20. Rxd8+ {[%clk 0:00:45.8]} 20... Bxd8 {[%clk
0:02:01.3]} 21. Bh6 {[%clk 0:00:35.6]} 21... Bb1 {[%clk 0:01:57.1]} 22. a3
{[%clk 0:00:32.7]} 22... Bb6 {[%clk 0:01:57]} 23. Kg2 {[%clk 0:00:29.8]} 23...
Ba2 {[%clk 0:01:53.2]} 24. Kf3 {[%clk 0:00:26.9]} 24... a5 {[%clk 0:01:41.8]}
25. a4 {[%clk 0:00:20]} 25... f6 {[%clk 0:01:39]} 26. Be8 {[%clk 0:00:18.8]}
26... Bd5+ {[%clk 0:01:33.9]} 27. e4 {[%clk 0:00:16.5]} 27... Bb3 {[%clk
0:01:34.3]} 28. Ke2 {[%clk 0:00:14.9]} 28... Bc4+ {[%clk 0:01:30.5]} 29. Ke1
{[%clk 0:00:14.5]} 29... Bc5 {[%clk 0:01:29.1]} 30. Bb5 {[%clk 0:00:12.3]} 30...
Bb3 {[%clk 0:01:26.1]} 31. Bd2 {[%clk 0:00:12.7]} 31... Bb6 {[%clk 0:01:26.1]}
32. Bh6 {[%clk 0:00:10.8]} 32... Kf7 {[%clk 0:01:24.8]} 33. Bd2 {[%clk
0:00:04.8]} 33... e5 {[%clk 0:01:23.7]} 34. Bc3 {[%clk 0:00:04.8]} 34... Ke7
{[%clk 0:01:22.9]} 35. Ke2 {[%clk 0:00:05.3]} 35... Bc2 {[%clk 0:01:22.7]} 36.
Bb2 {[%clk 0:00:05.3]} 36... Bxe4 {[%clk 0:01:22.1]} 37. Ba3+ {[%clk 0:00:06]}
37... Ke6 {[%clk 0:01:22]} 38. f3 {[%clk 0:00:06.7]} 38... Bd5 {[%clk
0:01:22.1]} 39. Kd3 {[%clk 0:00:06.2]} 39... Bxf3 {[%clk 0:01:21.1]} 40. Bc4+
{[%clk 0:00:06.9]} 40... Bd5 {[%clk 0:01:21.2]} 41. Bb5 {[%clk 0:00:07.3]} 41...
e4+ {[%clk 0:01:21.1]} 42. Ke2 {[%clk 0:00:07.1]} 42... Ke5 {[%clk 0:01:19.3]}
43. Bb2+ {[%clk 0:00:07.4]} 43... Bd4 {[%clk 0:01:19.5]} 44. Bc1 {[%clk
0:00:08.1]} 44... g5 {[%clk 0:01:17.8]} 45. Bd2 {[%clk 0:00:08.2]} 45... Bb6
{[%clk 0:01:16.7]} 46. Bc3+ {[%clk 0:00:08.3]} 46... Ke6 {[%clk 0:01:17.3]} 47.
Ba6 {[%clk 0:00:07.7]} 47... f5 {[%clk 0:01:12.8]} 48. Bc8+ {[%clk 0:00:07.3]}
48... Kf7 {[%clk 0:01:12.4]} 49. Bxf5 {[%clk 0:00:07.8]} 49... Bc4+ {[%clk
0:01:11.5]} 50. Kd2 {[%clk 0:00:07]} 50... e3+ {[%clk 0:01:12]} 51. Ke1 {[%clk
0:00:06.8]} 51... Bb3 {[%clk 0:01:12.3]} 52. Ke2 {[%clk 0:00:06.7]} 52... Bxa4
{[%clk 0:01:12.4]} 53. Bd3 {[%clk 0:00:02.5]} 53... Bd7 {[%clk 0:01:11.6]} 54.
Bc4+ {[%clk 0:00:02.5]} 54... Be6 {[%clk 0:01:11.5]} 55. Bxe6+ {[%clk 0:00:02]}
55... Kxe6 {[%clk 0:01:12.4]} 56. Bb2 {[%clk 0:00:01.2]} 56... Kd5 {[%clk
0:01:12.8]} 57. Ba3 {[%clk 0:00:01.6]} 57... a4 {[%clk 0:01:13.2]} 58. Be7
{[%clk 0:00:02.1]} 58... Kc4 {[%clk 0:01:13.7]} 59. Bxg5 {[%clk 0:00:01.6]}
59... a3 {[%clk 0:01:14]} 60. Bf6 {[%clk 0:00:02.2]} 60... Bd4 {[%clk
0:01:14.1]} 61. Bxd4 {[%clk 0:00:01.6]} 61... Kxd4 {[%clk 0:01:14.6]} 62. g4
{[%clk 0:00:02.1]} 62... a2 {[%clk 0:01:15.3]} 63. h4 {[%clk 0:00:03]} 63...
a1=Q {[%clk 0:01:16.1]} 64. g5 {[%clk 0:00:03.9]} 64... Qg1 {[%clk 0:01:16.8]}
65. g6 {[%clk 0:00:04.8]} 65... Qf2+ {[%clk 0:01:17.4]} 66. Kd1 {[%clk
0:00:04.8]} 66... Qd2# {[%clk 0:01:18.3]} 0-1

[Event "Early-Titled-Tuesday-Blitz-May-07-2024"]
[Site "Chess.com"]
[Date "2024.05.07"]
[Round "4"]
[White "WhiteKnight2612"]
[Black "KuzubovYuriy"]
[Result "1-0"]
[WhiteElo "2838"]
[BlackElo "2955"]
[TimeControl "180+1"]
[EndTime "8:42:43 PDT"]
[Termination "WhiteKnight2612 won by resignation"]

1. d4 {[%clk 0:03:00.9]} 1... Nf6 {[%clk 0:02:59.8]} 2. c4 {[%clk 0:03:00.7]}
2... e6 {[%clk 0:03:00.1]} 3. Nc3 {[%clk 0:03:01.1]} 3... d5 {[%clk 0:03:00.3]}
4. cxd5 {[%clk 0:03:00.3]} 4... exd5 {[%clk 0:03:01.2]} 5. Bg5 {[%clk
0:03:00.3]} 5... c6 {[%clk 0:03:01.8]} 6. e3 {[%clk 0:03:00.2]} 6... Be7 {[%clk
0:03:00.1]} 7. Bd3 {[%clk 0:03:00.2]} 7... Nbd7 {[%clk 0:02:59.8]} 8. Nge2
{[%clk 0:03:00.4]} 8... O-O {[%clk 0:02:57.7]} 9. Qc2 {[%clk 0:02:56.3]} 9...
Re8 {[%clk 0:02:54.9]} 10. O-O-O {[%clk 0:02:56.7]} 10... b5 {[%clk 0:02:51.5]}
11. Kb1 {[%clk 0:02:55.2]} 11... a5 {[%clk 0:02:41.7]} 12. f3 {[%clk 0:02:50.7]}
12... Ba6 {[%clk 0:02:39.4]} 13. e4 {[%clk 0:02:44.1]} 13... b4 {[%clk
0:02:36.6]} 14. Bxa6 {[%clk 0:02:25.7]} 14... Rxa6 {[%clk 0:02:33.3]} 15. Na4
{[%clk 0:02:24.7]} 15... dxe4 {[%clk 0:02:32.5]} 16. Ng3 {[%clk 0:02:24.6]}
16... exf3 {[%clk 0:02:15.3]} 17. gxf3 {[%clk 0:02:23]} 17... Nd5 {[%clk
0:02:12.7]} 18. Bxe7 {[%clk 0:02:20.8]} 18... Qxe7 {[%clk 0:02:08.6]} 19. Rc1
{[%clk 0:02:12.7]} 19... Qf6 {[%clk 0:01:54.5]} 20. Qd3 {[%clk 0:02:07]} 20...
Raa8 {[%clk 0:01:51.9]} 21. Ne4 {[%clk 0:02:07]} 21... Qh6 {[%clk 0:01:39.7]}
22. h4 {[%clk 0:02:01.9]} 22... Re6 {[%clk 0:01:15.9]} 23. Ng5 {[%clk
0:01:57.1]} 23... Re3 {[%clk 0:00:45.1]} 24. Qf5 {[%clk 0:01:56.5]} 24... Qg6
{[%clk 0:00:40]} 25. Qxg6 {[%clk 0:01:56.6]} 25... hxg6 {[%clk 0:00:40.9]} 26.
Rxc6 {[%clk 0:01:56.6]} 26... f6 {[%clk 0:00:40.3]} 27. Ne4 {[%clk 0:01:51.1]}
27... Nf8 {[%clk 0:00:33.1]} 28. h5 {[%clk 0:01:25.4]} 28... gxh5 {[%clk
0:00:31.4]} 29. Rxh5 {[%clk 0:01:26.3]} 29... Ne7 {[%clk 0:00:31.4]} 30. Rc7
{[%clk 0:01:25.6]} 30... Nfg6 {[%clk 0:00:21.3]} 31. Rh3 {[%clk 0:01:21.4]}
31... Nd5 {[%clk 0:00:18.2]} 32. Rd7 {[%clk 0:01:18.7]} 32... Ndf4 {[%clk
0:00:17.5]} 33. Rg3 {[%clk 0:01:16.9]} 33... f5 {[%clk 0:00:17.7]} 34. Nd6
{[%clk 0:01:14.3]} 34... Re1+ {[%clk 0:00:13.9]} 35. Kc2 {[%clk 0:01:14.3]}
35... Re2+ {[%clk 0:00:14.2]} 36. Kd1 {[%clk 0:01:13.4]} 36... Rh2 {[%clk
0:00:13]} 37. Nc5 {[%clk 0:01:10.6]} 37... Rf8 {[%clk 0:00:09.9]} 38. Ne6 {[%clk
0:01:08.4]} 38... Nxe6 {[%clk 0:00:09.7]} 39. Rxg6 {[%clk 0:01:09]} 39... Rf6
{[%clk 0:00:08.1]} 40. Rxf6 {[%clk 0:01:02.2]} 40... gxf6 {[%clk 0:00:09]} 41.
Nxf5 {[%clk 0:00:59]} 41... Rxb2 {[%clk 0:00:08.5]} 42. d5 {[%clk 0:00:59.6]}
42... Nf4 {[%clk 0:00:07.2]} 43. d6 {[%clk 0:00:59]} 43... Rxa2 {[%clk
0:00:06.4]} 44. Rg7+ {[%clk 0:00:59]} 44... Kf8 {[%clk 0:00:06]} 45. d7 {[%clk
0:00:59.2]} 45... Ne6 {[%clk 0:00:06.1]} 46. Re7 {[%clk 0:00:59.5]} 46... Ra3
{[%clk 0:00:05.5]} 47. Kd2 {[%clk 0:00:58]} 47... Ra2+ {[%clk 0:00:04.6]} 48.
Kc1 {[%clk 0:00:54.6]} 48... Ra3 {[%clk 0:00:02.2]} 49. Rxe6 {[%clk 0:00:54.4]}
49... Rc3+ {[%clk 0:00:03.1]} 50. Kb2 {[%clk 0:00:54.5]} 50... Rd3 {[%clk
0:00:03.9]} 51. Re8+ {[%clk 0:00:54.8]} 51... Kf7 {[%clk 0:00:04.4]} 52. d8=Q
{[%clk 0:00:55.7]} 52... Rxd8 {[%clk 0:00:04.5]} 53. Rxd8 {[%clk 0:00:56.6]}
53... Ke6 {[%clk 0:00:05.4]} 54. Nd4+ {[%clk 0:00:57.1]} 54... Ke5 {[%clk
0:00:06.1]} 55. Nc6+ {[%clk 0:00:57.6]} 55... Kf4 {[%clk 0:00:06.8]} 56. Rf8
{[%clk 0:00:58]} 56... f5 {[%clk 0:00:07.1]} 57. Nxa5 {[%clk 0:00:58.3]} 57...
Kxf3 {[%clk 0:00:07.3]} 58. Rxf5+ {[%clk 0:00:58.9]} 58... Ke4 {[%clk
0:00:08.2]} 59. Rb5 {[%clk 0:00:59.7]} 1-0